Cogmind - Beta 15 @@@ ROGUE MODE // 2025.07.09 @ 08:52:12 Player: puppuppit Result: Destroyed by as-17547 with Assembled Heavy Rifle Performance ------------- Evolutions (0) 0 Regions Visited (3) 600 Robots Destroyed (52) 260 Value Destroyed (809) 809 Prototype IDs (0) 0 Alien Tech Used (0) 0 Bonus (-15) -15 TOTAL SCORE: 1654 Bonus ------- Follower Combat Kills 60 Friendly Fire -75 Cogmind --------- Core Integrity 0/250 Matter 259/300 Energy 76/100 System Corruption 0% Temperature Cool (20) Movement Core (400) Ox7 Location -10/Exiles Parts ------- > --- POWER (1) -------- (None) > --- PROPULSION (2) --- (None) > --- UTILITY (2) ------ Large Storage Unit > --- WEAPON (2) ------- Assault Rifle Assault Rifle > --- INVENTORY (15) --- Medium Matter Pod (100) Medium Matter Pod (100) Medium Matter Pod (100) Large Matter Pod (150) Light Assault Rifle Light Assault Rifle Proton Bomb Trap Peak State ------------ > --- POWER ------------ Light Angular Momentum Engine > --- PROPULSION ------- Light Treads Light Treads > --- UTILITY ---------- Large Storage Unit Hacking Suite > --- WEAPON ----------- Assault Rifle Assault Rifle > --- INVENTORY -------- Medium Matter Pod Medium Matter Pod Medium Matter Pod Large Matter Pod Assault Rifle Assault Rifle Light Assault Rifle Light Assault Rifle Light Assault Rifle Proton Bomb Trap [Rating: 14] Favorites ----------- Power Light Ion Engine Engine Light Ion Engine Propulsion Light Treads Treads Light Treads Utility Hacking Suite Device Structural Scanner Storage Small Storage Unit Hackware Hacking Suite Weapon Assault Rifle Energy Gun EM Pulse Gun Ballistic Gun Assault Rifle Ballistic Cannon Light Cannon Launcher Grenade Launcher Build | -11 -10 -10 -10 ------- Run | Yrd Mat Min Exi Slots Evolved . | . . . . Power . | . . . . Propulsion . | . . . . Utility . | . . . . Weapon . | . . . . Parts Attached 23 | 8 9 1 5 Power 3 | 1 1 . 1 Engine 3 | 1 1 . 1 Core . | . . . . Reactor . | . . . . Propulsion 2 | 2 . . . Treads 2 | 2 . . . Leg . | . . . . Wheel . | . . . . Hover . | . . . . Flight . | . . . . Utility 6 | 2 2 1 1 Device 2 | 1 1 . . Storage 3 | 1 . 1 1 Processor . | . . . . Hackware 1 | . 1 . . Protection . | . . . . Artifact . | . . . . Weapon 12 | 3 6 . 3 Energy Gun 3 | 2 1 . . Energy Cannon . | . . . . Ballistic Gun 7 | 1 3 . 3 Ballistic Cannon 1 | . 1 . . Launcher 1 | . 1 . . Special Weapon . | . . . . Impact Weapon . | . . . . Slashing Weapon . | . . . . Piercing Weapon . | . . . . Special Melee Weapon . | . . . . Unidentified Prototypes . | . . . . Parts Lost 12 | . 3 1 8 Power 3 | . 1 . 2 Propulsion 2 | . . . 2 Utility 1 | . . . 1 Weapon 6 | . 2 1 3 Highest Loss Streak 8 | . 1 1 8 To Critical Strikes 1 | . 1 . . Average Backups 7 | . 6 7 10 Power . | . . . 2 Propulsion . | . . . . Utility 2 | . 3 2 3 Weapon 3 | . 2 5 4 Tool/Special . | . . . . Unused Backups 14 | . 6 . 8 Power 3 | . . . 3 Propulsion . | . . . . Utility 6 | . 2 . 4 Weapon 5 | . 4 . 1 Tool/Special . | . . . . Average Slot Usage (%) 98 | . 96 100 99 Engine 12 | . 11 14 13 Treads 27 | . 27 28 27 Device 3 | . 6 . . Storage 14 | . 14 14 14 Hackware 10 | . 7 14 14 Energy Gun 2 | . 5 . . Ballistic Gun 22 | . 15 27 27 Ballistic Cannon 2 | . 6 . . Peak Build Rating 14 | 9 10 10 14 Average Rating 9 | 6 8 9 10 On Entrance 7 | . 9 9 10 Naked Turns . | . . . . Heaviest Build 33 | 15 16 18 33 Greatest Support 40 | 40 40 40 40 Greatest Overweight (x) 9 | 2 . . 9 Average Overweight (x) . | . . . . Largest Inventory Capacity 15 | 8 8 10 15 Average Capacity 9 | 7 8 9 14 Most Carried 13 | 2 8 10 13 Average Carried 7 | . 6 8 11 Final Capacity 15 | 8 8 10 15 Final Carried 10 | 2 8 10 7 Class Distribution -------------------- 100% | Mutant Dominant Class ---------------- Mutant | -10/Materials Mutant | -10/Mines Mutant | -10/Exiles Resources | -11 -10 -10 -10 ----------- Run | Yrd Mat Min Exi Matter Collected 1379 | 367 828 126 58 Remotely . | . . . . Salvage Created 1466 | 232 939 265 30 Parts 108 | 22 63 23 . Haulers Intercepted 1 | . 1 . . Recyclers Shooed 3 | . 3 . . Parts Field Recycled . | . . . . Retrieved Matter . | . . . . Parts Self-Destructed . | . . . . Prevented . | . . . . Kills | -11 -10 -10 -10 ------- Run | Yrd Mat Min Exi Combat Hostiles Destroyed 22 | . 15 5 2 Guns 12 | . 6 4 2 AOE 10 | . 9 1 . Classes Destroyed 11 | 3 7 . 1 Worker 8 | 2 5 1 . Builder 3 | . 3 . . Tunneler 6 | 5 . 1 . Hauler 1 | . 1 . . Recycler 6 | 1 4 1 . Mechanic 2 | . 1 1 . Operator 3 | . 3 . . Watcher 3 | . 3 . . Swarmer 8 | . 6 2 . Grunt 12 | . 9 3 . Assembled 2 | . . . 2 Best Kill Streak 6 | 5 6 4 2 Combat Bots Only 6 | . 6 3 2 Max Kills in Single Turn 3 | 2 3 1 1 Gunslinging . | . . . . Exploded 3 | . 3 1 . Melee . | . . . . Uniques/NPCs Destroyed 1 | . . . 1 EX-DEC (-10/Exiles) Combat | -11 -10 -10 -10 -------- Run | Yrd Mat Min Exi Hostile Shots Fired 169 | . 86 26 57 Missed 61 | . 26 13 22 Hits 108 | . 60 13 35 Melee 3 | . . . 3 Projectile 105 | . 60 13 32 Critical Strikes 6 | . 4 . 2 Part Disruptions 3 | . . . 3 Damage Taken 1608 | 17 720 143 728 Core 258 | . 77 16 165 Absorbed by Shields . | . . . . Regen/Repaired (Parts) 126 | . 126 . . Core Remaining (%) 100 | 100 . . . Volleys Fired 125 | 12 92 14 7 Largest 2 | 2 2 2 2 Hottest 60 | 60 60 50 40 Shots Fired 224 | 24 158 28 14 Gun 209 | 24 146 25 14 Cannon 4 | . 4 . . Launcher 11 | . 8 3 . Special . | . . . . Kinetic 159 | 12 108 25 14 Thermal 6 | . 6 . . Explosive 11 | . 8 3 . Electromagnetic 48 | 12 36 . . Robot Hit Streak 11 | 10 11 3 5 Robot Miss Streak 5 | 1 5 3 2 Penetration Max . | . . . . Secondary Targets 1 | . . 1 . Max Gunslinging Chain 1 | . . 1 . Shots Hit Robots 132 | 15 96 12 9 Core Hits 78 | 8 52 11 7 Critical Kills . | . . . . Critical Parts Destroyed . | . . . . Critical Strikes . | . . . . Melee Attacks . | . . . . Impact . | . . . . Slashing . | . . . . Piercing . | . . . . Sneak Attacks . | . . . . Combat Hostiles . | . . . . Follow-up Attacks . | . . . . Damage Inflicted 2619 | 260 1872 353 134 Guns 1598 | 215 1120 129 134 Cannons 67 | . 67 . . Explosions 954 | 45 685 224 . Melee . | . . . . Ramming . | . . . . Kinetic 1201 | 73 865 129 134 Thermal 172 | 45 127 . . Explosive 827 | . 603 224 . Electromagnetic 419 | 142 277 . . Impact . | . . . . Slashing . | . . . . Piercing . | . . . . Highest Corruption . | . . . . Average Corruption . | . . . . Corruption Purged . | . . . . Corruption Blocked . | . . . . Overload Shots . | . . . . Overflow Damage 92 | 20 72 . . Projectiles . | . . . . Explosions 92 | 20 72 . . Melee . | . . . . Knockbacks . | . . . . Impact . | . . . . Kinetic . | . . . . Secondary . | . . . . Self-Inflicted Damage 56 | 17 39 . . Shots 4 | 1 3 . . Rammed . | . . . . Targets Rammed . | . . . . Kicked . | . . . . Crushed . | . . . . Highest Temperature 40 | 12 24 7 40 Average Temperature 9 | 11 7 4 17 Received Heat Transfer 632 | . 366 66 200 Siege Activations . | . . . . Martial Activations . | . . . . Shielding Activations . | . . . . Robots Disrupted . | . . . . Combat Hostiles . | . . . . Robots Corrupted . | . . . . Combat Hostiles . | . . . . Parts Fried . | . . . . Impact Corruptions . | . . . . Robots Melted . | . . . . Combat Hostiles . | . . . . Parts Melted . | . . . . Heat Transferred 250 | 50 200 . . Parts Sabotaged . | . . . . Parts Stolen . | . . . . Parts Stripped . | . . . . Power Chain Reactions 3 | 1 2 . . Alert | -11 -10 -10 -10 ------- Run | Yrd Mat Min Exi Maximum Alert Level 1 | . 1 . . Low Security (%) 95 | 100 92 100 . Level 1 4 | . 7 . . Level 2 . | . . . . Level 3 . | . . . . Level 4 . | . . . . Level 5 . | . . . . High Security . | . . . . Max Security . | . . . . Peak Influence 213 | 15 213 162 . Initial 51 | . . 51 . Average 76 | 3 104 40 . Influence Increases 933 | 40 673 220 . Destroy 0b10 Robot/C 440 | . 300 140 . Destroy 0b10 Robot/NC 160 | 40 100 20 . Destroy Leader 88 | . 68 20 . Allied During Kill 7 | . . 7 . Successful Hack 60 | . 55 5 . Disable Machine 105 | . 90 15 . Destroy Structure 58 | . 45 13 . Lose Combat Pursuer 15 | . 15 . . Influence Decreases 933 | 40 540 353 . Entered New Map 82 | . . 82 . Time Decay 811 | 40 510 261 . Lost Part 40 | . 30 10 . Squads Dispatched 4 | . 2 2 . Investigation 2 | . 1 1 . Extermination . | . . . . Reinforcement 1 | . 1 . . Assault 1 | . . 1 . Garrison . | . . . . Intercept . | . . . . Searches Triggered . | . . . . Construction Impeded . | . . . . Haulers Reinforced . | . . . . Active Scanning Responses . | . . . . Cargo Convoy Interrupts . | . . . . Stealth | -11 -10 -10 -10 --------- Run | Yrd Mat Min Exi Distress Signals 1 | . 1 . . Communications Jammed . | . . . . Distress Signals . | . . . . Times Spotted 39 | . 21 10 8 Peak Tracking Total 11 | . 6 4 11 Tactical Retreats 1 | . 1 . . Traps | -11 -10 -10 -10 ------- Run | Yrd Mat Min Exi Traps Triggered . | . . . . Indirectly . | . . . . Trap Hack Attempts . | . . . . Triggered . | . . . . Disarmed . | . . . . Reprogrammed . | . . . . Reused . | . . . . Traps Extracted . | . . . . Installed . | . . . . Triggered . | . . . . Most Traps Carried 3 | . . 3 3 Machines | -11 -10 -10 -10 ---------- Run | Yrd Mat Min Exi Machines Disabled 9 | . 6 1 2 Max in Single Turn 1 | . 1 1 1 Machines Repaired . | . . . . Machines Dismantled . | . . . . Machines Sabotaged . | . . . . Overloaded Fab Kills . | . . . . Hacking | -11 -10 -10 -10 --------- Run | Yrd Mat Min Exi Machines Accessed 12 | . 10 1 1 Terminals 8 | . 7 1 . Fabricators . | . . . . Repair Stations 1 | . 1 . . Recycling Units 2 | . 2 . . Scanalyzers . | . . . . Garrison Access . | . . . . Total Hacks 40 | . 33 6 1 Successful 21 | . 17 3 1 Failed 18 | . 16 2 . Catastrophic 1 | . 1 . . Database Lockouts 1 | . . 1 . Manual 36 | . 30 6 . Terminals 30 | . 24 6 . Fabricators . | . . . . Repair Stations 4 | . 4 . . Recycling Units 5 | . 5 . . Scanalyzers . | . . . . Garrison Access . | . . . . Terminal Hacks 6 | . 2 3 1 Record 1 | . . . 1 Robot Analysis 4 | . 1 3 . Terminal Index 1 | . 1 . . Fabricator Hacks . | . . . . Repair Station Hacks 2 | . 2 . . Scan Component 1 | . 1 . . Repair 1 | . 1 . . Recycling Unit Hacks . | . . . . Scanalyzer . | . . . . Garrison Access Hacks . | . . . . Unauthorized Hacks 13 | . 13 . . Terminals 8 | . 8 . . Botnet 2 | . 2 . . Skim 6 | . 6 . . Fabricators . | . . . . Repair Stations 1 | . 1 . . Patch 1 | . 1 . . Recycling Units 4 | . 4 . . Reject 2 | . 2 . . Recyclers 1 | . 1 . . Mask 1 | . 1 . . Scanalyzers . | . . . . Garrison Access . | . . . . Data Cores Recovered 2 | . 2 . . Used 2 | . 2 . . Hacking Detections 9 | . 8 1 . Full Trace Events 2 | . 1 1 . Feedback Events . | . . . . Feedback Blocked . | . . . . Robot Schematics Acquired . | . . . . Robots Built . | . . . . Authchips . | . . . . Time . | . . . . Total Robot Build Rating . | . . . . Part Schematics Acquired . | . . . . Parts Built . | . . . . Authchips . | . . . . Time . | . . . . Total Part Build Rating . | . . . . Parts Repaired 1 | . 1 . . Time 26 | . 26 . . Parts Recycled . | . . . . Recycled Matter . | . . . . Retrieved Matter . | . . . . Retrieved Components . | . . . . Parts Scanalyzed . | . . . . Part Schematics Acquired . | . . . . Parts Damaged . | . . . . Bothacking | -11 -10 -10 -10 ------------ Run | Yrd Mat Min Exi Used RIF Installer . | . . . . Robots Hacked . | . . . . Non-combat . | . . . . Combat . | . . . . Robot Hacks Applied . | . . . . Relay Couplers Released . | . . . . Fabnet Peak Effective % . | . . . . Robots Rewired . | . . . . Allies Hacked . | . . . . Hacks Repelled . | . . . . Allies | -11 -10 -10 -10 -------- Run | Yrd Mat Min Exi Total Allies 4 | . . 4 . Largest Group 4 | . . 4 4 Highest-Rated Group 71 | . . 71 71 Highest-Rated Ally 31 | . . 31 31 Total Orders . | . . . . Ally Attacks 16 | . . 6 10 Total Damage 203 | . . 82 121 Kills 3 | . . 2 1 Allies Corrupted . | . . . . Allies Melted . | . . . . Intel | -11 -10 -10 -10 ------- Run | Yrd Mat Min Exi Active Infowar (turns) 894 | 74 820 . . Terrain 127 | 74 53 . . Structural 767 | . 767 . . Robot Analysis Total 4 | . 1 3 . Derelict Logs Recovered . | . . . . Drone Launches . | . . . . Drone Recoveries . | . . . . Exploration | -11 -10 -10 -10 ------------- Run | Yrd Mat Min Exi Turns Passed 3978 | 150 1774 1051 1003 Spaces Moved 2186 | 68 897 623 598 Core 14 | 11 . . 3 Treads 2172 | 57 897 623 595 Legs . | . . . . Wheels . | . . . . Hover . | . . . . Flight . | . . . . Fastest Speed 50 | 50 160 160 160 Average Speed 160 | 148 160 160 161 Slowest Speed 500 | 160 160 160 500 Overloaded Moves . | . . . . Propulsion Burnouts . | . . . . Robots Hopped . | . . . . Potential Cave-ins . | . . . . Cave-ins Triggered . | . . . . Exploration Rate (%) 64 | 6 91 97 64 Regions Visited 3 Branch Regions 2 Pre-discovered Areas 1 | . . . 1 Known Exits Taken . | . . . . Unknown Exits Taken 3 | 1 1 1 . Scrap Searched 1 | . . 1 . Spaces Dug 20 | . 20 . . Terrain Destroyed 65 | 3 48 14 . Melee . | . . . . Projectile . | . . . . AOE 65 | 3 48 14 . Terrain Rammed . | . . . . Walls Destroyed . | . . . . Machines Disabled . | . . . . Actions | -11 -10 -10 -10 --------- Run | Yrd Mat Min Exi Total 2444 | 89 1078 651 626 Wait 48 | . 43 4 1 Move 2183 | 67 896 622 598 Hop . | . . . . Pick Up 27 | 2 14 5 6 Fast Attach 14 | 7 6 . 1 Attach 6 | . 2 1 3 Detach 4 | . 4 . . Swap 17 | 1 11 2 3 Drop 20 | . 10 3 7 Fire 125 | 12 92 14 7 Melee . | . . . . Ram . | . . . . Kick . | . . . . Crush . | . . . . Escape Stasis . | . . . . Rewire . | . . . . Trap . | . . . . Miscellaneous . | . . . . Route ------- -11/Scrapyard -10/Materials (discovered 5 exits: [*Mat x3] / *Min / Sub) -10/Mines (discovered 3 exits: [*Mat x2] / *Exi) -10/Exiles (discovered 1 exit: [*Min]) History --------- Turn | Location | Event 10 | -11/Scrapyard | Discovered new exit (range 16) 151 | -11/Scrapyard | Entered Materials 292 | -10/Materials | Discovered new exit (range 13) 309 | -10/Materials | Build established: Mutant 754 | -10/Materials | Repaired Lgt. Treads 941 | -10/Materials | Discovered new exit (range 14) 1172 | -10/Materials | Discovered new exit (range 4) 1475 | -10/Materials | Discovered new exit (range 4) 1555 | -10/Materials | Learned Storage garrison access intel 1614 | -10/Materials | Learned 4 Subcaves zone layouts 1665 | -10/Materials | Learned 2 Mines zone layouts 1705 | -10/Materials | Identified exit to Subcaves 1736 | -10/Materials | Learned 2 Storage zone layouts 1831 | -10/Materials | Learned Storage trap positions 1925 | -10/Materials | Entered Mines 1926 | -10/Mines | Met a Derelict testing a Signal Generator 1929 | -10/Mines | Found Signal Generator 1930 | -10/Mines | Met a Derelict bent on vengeance 2072 | -10/Mines | Discovered new exit (range 8) 2123 | -10/Mines | Deemed a non-threat by the Exiles lab entrance 2123 | -10/Mines | Discovered new exit (range 5) 2276 | -10/Mines | Discovered new exit (range 6) 2334 | -10/Mines | Found a hidden stash of uninstalled traps 2385 | -10/Mines | Central database locked down 2862 | -10/Mines | Assisted by bots powering up and referring to "LRC-V3" 2976 | -10/Mines | Entered Exiles 2976 | -10/Exiles | Accompanied by 4 allies 3019 | -10/Exiles | Met 8R-AWN 3047 | -10/Exiles | Met EX-HEX 3173 | -10/Exiles | Met EX-DEC 3204 | -10/Exiles | Learned location of Zion (-7) 3483 | -10/Exiles | Met EX-BIN 3592 | -10/Exiles | Discovered new exit (range 10) 3934 | -10/Exiles | Attacked by the Exiles 3940 | -10/Exiles | Allies destroyed EX-DEC 3952 | -10/Exiles | Core integrity fell below 50% 3966 | -10/Exiles | Core integrity fell below 20% 3972 | -10/Exiles | Lost 4 allies 3979 | -10/Exiles | Destroyed by as-17547 with Assembled Heavy Rifle Last Messages --------------- 03940_ EX-DEC: "This would never have happened if OCT was still around!" 03941_ LO-EQ9(g) Beamcaster blasted off. 03941_ LO-EQ9(g) destroyed. 03942_ Acquired 38 matter. 03943_ Lgt. Ion Engine destroyed. 03943_ Critical hit (Blast). 03946_ Acquired Lgt. Angular Momentum Engine. 03947_ EX-BIN: "I just want to science!" 03949_ Assault Rifle destroyed. 03949_ Lgt. Treads destroyed. 03951_ Assault Rifle destroyed. 03952_ Lgt. Treads destroyed. 03957_ Machine disabled. 03961_ Lgt. Angular Momentum Engine destroyed. 03962_ as-87265 destroyed. 03972_ Lgt. Assault Rifle destroyed. 03975_ Hacking Suite destroyed. 03976_ as-27567 destroyed. 03978_ as-25168 destroyed. Map ----- +----------------------------------------------------+ | ??????????????????????????????????????????????# | | ??????????????????????????????????????????????# | | ??????????????????????????????????????????????# | | #????????????????????????????????????????????## | | #????????????#######?????????????????????????#" | | #######??????#!!! "#?????????????????????????#" | | #""##?????# "#?????????????????????????#" | | #?????# "#?????????????????????????#" | | ##???## ""#????????????##???????????#" | | #####" ""#???????????? """????????#" | | ##" ""#????????????" """#????????# | | #"" #??????????????" ?????????# | | "## #?????????????"" ?????????#" | | ###### ##????????????"" "#????????#" | | ?????### "#???????????? ""?????????#" | | #######" ###???????????" "?????????##" | | !!""""" ##??????????# #????????##"" | | ! "###"" ######???### ###?######"" | | ! "#?##" """#####X# #"###""""""" | | ! ##??#" """""" " "" | | !""""""###???#"# "" """ " | | #########?????#### " " | | ?????????????????### | | ???????????????????### | | ?????????????????????## | | ??????????????????????## @ % | | ???????????????????????##"%a % | | ????????????????????????#" % """""" | | ???????????????????????##" %% ######" | | ???????????????????????#"" %a ""##????## | | ??????????????????????##" a """##??????? | | ??????????????????????#"""%[ %a z"""##???????? | | ??????????????????????#""" ! % "#????????? | | ??????????????????????#"" =%[ ########??# | | ??????????????????????#""" * ## #### | | ??????????????????????#"" [ """ | | ??????????????????????##"" =%! | | ???????????????????????#""" = | | ???????????????????????## | | ????????????????????????#" " | | ????????????????????????#"""" ""## | | ????????????????????????#"" !! ""#### | | ????????????????????????#" !%! """"##??# | | ?????????????????????????""" & """#??## | | ????????????????????????## ""##??#! | | ?????????????????????????#"" """##???#" | | ??????????????????????????#""" ##????#" | | ???????????????????????????#"""" ##?????#!!" | | ????????????????????????????## #??????#### | | ??????????????????????????????#### ##?????????? | +----------------------------------------------------+ Best States ------------- Heat Dissipation 25 Energy Generation 18 Energy Capacity 250 Matter Stores 300 Matter Capacity 300 Sight Range 16 Terrain Scan Range 16 Terrain Scan Density 10 Evasion (%) 40 Recoil Reduction 2 Offensive Hacking 10 Item Schematics ----------------- None Robot Schematics ------------------ None Fabricated ------------ Nothing Repaired ---------- Lgt. Treads | 28% | -10/Materials Alien Tech Used ----------------- None Achievements -------------- None Challenges ------------ None Game ------ Seed DefenseRingRay Manual? 0 Play Time 00:17:50 Cumulative 388.4 hours Start 2025.07.09 @ 08:35:31 End 2025.07.09 @ 08:52:12 Sessions 1 Manual Loads 0 Difficulty Rogue Special Mode None Game No. 226 Rogue 226 Adventurer 0 Explorer 0 Win Type - Total 4 Types 2/0/1/1/0/0/0/0/0/0 Lore% 85 Gallery% 73 Achievement% 67 Wizard Run 0 Options --------- Layout 2 ASCII 0 Keyboard 1 Movement Vi Keybinds 0 Fullscreen 2 Font 16/Tamsyn Map View 55x47 Zoom Use 0% Tactical HUD 1 Map Filters NONE Filters NONE Steam 0 RUN: 446da715-add0-4659-8d70-8b7f02d5310b